Workbook

Sheet hostel budget
B2: Hostel Budget (September 2012 to August 2013)
B4: average number of children p.m. during the year | C4: =((15*4)+(25*4)+(35*4))/12 -> 25
B5: estimated number of residential facility will be fully functional | C5: 280 | D5: 25 days for festivals and 30 days off in summer break and 30 days off during 12 weekends
C7: Total | D7: Amount requested | E7: Will raise from Tata Trust, | F7: Notes
C8: Amount | D8: from Asha Stanford | E8: Local Donations in cash / kind
B10: Food Costs
B11: @ Rs. 60 per child per day | C11: =60*280*25 -> 420000 | D11: =C11-E11 -> 270000 | E11: 150000 | F11: will go to ration shops and people to provide materials for a day/week | H11: =K25+I34+G3 -> 0
B13: Venue Costs
B14: @ Rs. 10,000 per month | C14: =10000*12 -> 120000 | D14: =C14-E14 -> 20000 | E14: 100000 | F14: will start from career college campus and shift to our rudimentary land
B16: Salary Costs of Warden cum Teachers
B17: @ Rs. 9200 p.m. for one person | C17: =9200*12 -> 110400 | D17: =C17-E17 -> 78400 | E17: 32000
B18: @ Rs. 10000 p.m. for second teacher | C18: =10000*12 -> 120000 | D18: =C18-E18 -> 72000 | E18: =4000*12 -> 48000 | F18: will draw part-salary from other budget
B20: Residential arrangements
B21: Mattresses and Blankets | C21: 15000 | D21: =C21-E21 -> 7500 | E21: 7500 | F21: additional ones are needed as old mattresses are being run down now
B22: Cupboards | C22: 0 | D22: 0 | F22: we have
B23: Mats (Chataes) | C23: 5000 | D23: =C23-E23 -> 2500 | E23: 2500
B24: Kitchen Utensils | C24: 5000 | D24: =C24-E24 -> 2500 | E24: 2500 | F24: partly have; therefore budgeted less
B25: Syntex Water Tank | C25: 12000 | D25: 0 | E25: 12000 | I25: =SUM(D44+#REF!+#REF!+#REF!+#REF!) -> 
B27: Study and Other Arrangements
B28: Study Materials (books, bag, stationery) - Rs. 1000 per child | C28: =25000 -> 25000 | D28: =C28-E28 -> 17000 | E28: 8000 | F28: will go to schools for old bags and stationery donations
B29: Uniforms for school-goers (Rs. 900 for 10 children) | C29: 9000 | D29: 9000 | E29: 0
B30: Library Books | C30: 7000 | D30: 5000 | E30: 2000
B31: Game Equipments (basketball, football, etc.) | C31: 4000 | D31: 2000 | E31: 2000 | F31: ask people for in-kind donations for this
B32: Musical Instruments | C32: 6000 | D32: 4000 | E32: 2000
B33: Film Watching - Projector Charges-twice/month | C33: =500*22 -> 11000 | D33: 4000 | E33: 7000 | F33: will ask friendly groups for sharing of projector
B34: Printing of Newsletters/diaries | C34: 9000 | D34: 6000 | E34: 3000
B35: Workshops - 1 per month for 11 months | C35: =5000*11 -> 55000 | D35: 30000 | E35: 25000 | F35: take out partly from other budgets
B36: Meditation Workshops - 3 / year | C36: =8000*3 -> 24000 | D36: 0 | E36: =C36 -> 24000
B37: Clothes (winters particularly @ Rs. 400 per child) | C37: 12000 | D37: 5000 | E37: 7000 | F37: ask people for in-kind donations for this
B39: Part-time staff
B40: Counsellor - Rs. 600 per day per week for 32 weeks | C40: =32*600 -> 19200 | D40: =C40-E40 -> 11200 | E40: 8000
B41: Music Teacher - Rs. 450 per day per week - 32 weeks | C41: =450*32 -> 14400 | D41: 5400 | E41: 9000
B42: Volunteers for specific subject and school support | C42: 0 | D42: 0 | F42: not budgeted
B44: Management and Guidance Costs @ Rs. 4000 p.m. | C44: 48000 | D44: =C44-E44 -> 24000 | E44: 24000 | F44: take out partly from other projects
C45: =SUM(C11:C44) -> 1051000 | D45: =SUM(D11:D44) -> 575500 | E45: =SUM(E11:E44) -> 475500

Sheet Sheet3
